bitfinex/quotes_SOLUSD_20250830
["timestamp","ask_amount","ask_price","bid_price","bid_amount"]
[1756592478709,4.6693959,201.45,201.43,13.59559401]
[1756592480325,4.6693959,201.45,201.4,13.59559401]
[1756592480534,3.9993959,201.43,201.41,0.69]
[1756592481511,4.6693959,201.42,201.39,13.59559401]
[1756592481713,3.9993959,201.4,201.39,13.59559401]
[1756592482334,3.9993959,201.4,201.38,13.59559401]
[1756592482505,3.9993959,201.39,201.38,13.59559401]
[1756592482828,3.9993959,201.39,201.35,0.69]
[1756592482829,3.9993959,201.39,201.36,13.59559401]
[1756592483024,3.9993959,201.39,201.36,14.28559401]
[1756592483824,3.9993959,201.38,201.36,14.28559401]
[1756592484624,31.63559777,201.39,201.36,13.59559401]
[1756592484836,26.67,201.39,201.36,13.59559401]
[1756592485147,3.9993959,201.38,201.36,14.28559401]
[1756592485306,3.9993959,201.37,201.36,13.59559401]
[1756592489842,30.6693959,201.37,201.35,0.03]
[1756592490054,3.9993959,201.36,201.35,0.03]
[1756592490219,29.9993959,201.36,201.35,0.03]
[1756592490418,30.6693959,201.36,201.35,0.03]
[1756592491928,35.63562553,201.36,201.35,0.03]
[1756592492524,48.05119962,201.36,201.32,0.03]
[1756592492723,29.9993959,201.33,201.32,0.03]
[1756592493135,30.6893959,201.33,201.32,0.03]
[1756592493826,35.65636555,201.33,201.32,0.03]
[1756592495031,74.59636555,201.33,201.32,0.03]
[1756592498652,26.0,201.3,201.29,0.03]
[1756592498952,72.9187918,201.3,201.29,0.03]
[1756592499253,73.6087918,201.3,201.29,0.03]
[1756592499838,78.57650168,201.3,201.29,1e-08]
[1756592500043,90.99577639,201.3,201.26,0.03]
[1756592500244,3.9993959,201.27,201.26,0.03]
[1756592500556,42.8993959,201.27,201.26,0.03]
[1756592500739,43.5893959,201.27,201.26,0.03]
[1756592501739,48.55784624,201.27,201.26,0.03]
[1756592503362,26.0,201.25,201.24,0.03]
[1756592503549,29.9993959,201.25,201.24,0.03]
[1756592503747,30.6893959,201.25,201.24,0.03]
[1756592504863,74.55833999,201.25,201.24,0.03]
[1756592508772,86.98070023,201.25,201.18,0.16]
[1756592508949,3.9993959,201.19,201.18,0.16]
[1756592512362,8.96982186,201.19,201.18,0.16]
[1756592512960,3.9993959,201.21,201.18,0.16]
[1756592515971,3.9993959,201.22,201.18,0.16]
[1756592516173,4.96916978,201.25,201.19,13.59559401]
[1756592516470,8.96856568,201.25,201.2,0.66]
[1756592517754,3.9993959,201.24,201.2,0.66]
[1756592520687,3.9993959,201.24,201.2,0.69]
[1756592522068,3.9993959,201.24,201.22,13.59559401]
[1756592524485,3.9993959,201.23,201.22,13.59559401]
[1756592524988,3.9993959,201.23,201.2,0.03]
[1756592525288,3.9993959,201.23,201.2,0.72]
[1756592526092,5.64921695,201.24,201.2,0.03]
[1756592526093,3.9993959,201.21,201.2,0.03]
[1756592526262,34.96932781,201.21,201.2,0.03]
[1756592526462,39.64872371,201.21,201.2,0.03]
[1756592526691,13.64872371,201.21,201.2,0.03]
[1756592528804,26.0,201.18,201.17,0.03]
[1756592528984,29.9993959,201.18,201.17,0.03]
[1756592529188,30.6793959,201.18,201.17,0.03]
[1756592529571,35.65006892,201.18,201.17,0.03]
[1756592536680,35.65006892,201.18,201.15,0.03]
[1756592536883,26.0,201.15,201.14,0.2]
[1756592537072,29.9993959,201.15,201.14,0.2]
[1756592537297,30.6793959,201.15,201.14,0.2]
[1756592537491,26.0,201.14,201.12,0.03]
[1756592537689,64.72,201.14,201.12,0.03]
[1756592537891,0.68,201.13,201.12,0.03]
[1756592538082,4.6793959,201.13,201.12,0.03]
[1756592539413,9.65130461,201.13,201.12,0.03]
[1756592543703,3.9993959,201.16,201.13,13.59559401]
[1756592543911,3.9993959,201.17,201.13,13.59559401]
[1756592544217,3.9993959,201.17,201.14,0.69]
[1756592544578,8.97032715,201.17,201.14,0.69]
[1756592545082,8.97032715,201.17,201.15,0.69]
[1756592545684,3.9993959,201.2,201.17,13.59559401]
[1756592545985,26.0,201.19,201.17,14.28559401]
[1756592546190,38.72,201.22,201.18,0.69]
[1756592546379,3.9993959,201.19,201.14,13.595594]
[1756592546580,8.97037353,201.17,201.15,13.59559401]
[1756592547807,3.9993959,201.16,201.15,13.59559401]
[1756592549404,8.97056313,201.16,201.15,13.59559401]
[1756592552709,9.64056313,201.16,201.13,13.59559401]
[1756592552907,3.9993959,201.14,201.12,13.62559401]
[1756592553217,3.9993959,201.14,201.12,14.30559401]
[1756592554013,30.6693959,201.13,201.12,0.03]
[1756592555313,35.64130461,201.13,201.12,0.03]
[1756592556396,34.97130461,201.13,201.12,0.03]
[1756592556621,26.0,201.13,201.12,0.71]
[1756592556916,26.0,201.13,201.12,14.30559401]
[1756592557089,26.0,201.13,201.12,13.62559401]
[1756592561622,26.0,201.13,201.12,14.30559401]
[1756592563324,26.0,201.13,201.12,13.62559401]
[1756592566221,34.97108647,201.14,201.12,13.62559401]
[1756592567314,30.97169057,201.14,201.12,13.62559401]
[1756592569123,26.0,201.14,201.12,13.62559401]
[1756592569726,29.9993959,201.14,201.12,13.62559401]
[1756592571404,30.6693959,201.14,201.12,13.62559401]
[1756592572218,0.06,201.16,201.13,13.59559401]
[1756592572425,0.06,201.16,201.13,18.27498991]
[1756592572726,0.06,201.16,201.15,13.59559401]
[1756592579104,0.06,201.16,201.15,14.27559401]
[1756592581027,0.06,201.16,201.15,13.59559401]
[1756592583531,0.06,201.16,201.15,14.27559401]
[1756592584230,0.06,201.16,201.15,23.24640427]
[1756592584433,0.06,201.16,201.15,38.19148127]
[1756592588829,0.06,201.16,201.15,28.54067101]
[1756592589033,0.78,201.16,201.15,13.59559401]
[1756592595849,0.06,201.16,201.15,13.59559401]
[1756592610659,4.7793959,201.16,201.15,13.59559401]
[1756592611439,3.34759355,201.16,201.15,13.59559401]
[1756592612352,8.31876078,201.16,201.15,13.59559401]
[1756592613340,9.76301684,201.16,201.15,13.59559401]
[1756592616269,5.75116723,201.16,201.15,13.59559401]
[1756592616445,9.76301684,201.16,201.15,13.59559401]
[1756592621445,0.06,201.16,201.15,14.27559401]
[1756592621779,0.06,201.16,201.15,13.59559401]
[1756592622567,4.07184961,201.16,201.15,13.59559401]
[1756592622964,0.06,201.16,201.15,13.59559401]
[1756592623157,4.07184961,201.16,201.15,13.59559401]
[1756592623572,0.06,201.16,201.15,13.59559401]
[1756592627272,4.07184961,201.16,201.15,13.59559401]
[1756592627582,4.74184961,201.16,201.15,13.59559401]
[1756592627755,9.71301684,201.16,201.15,13.59559401]
[1756592628743,4.07184961,201.16,201.15,13.59559401]
[1756592628949,4.74184961,201.16,201.15,13.59559401]
[1756592629496,9.71301684,201.16,201.15,13.59559401]
[1756592634199,5.70116723,201.16,201.15,13.59559401]
[1756592634496,9.71301684,201.16,201.15,13.59559401]
[1756592635292,8.26829241,201.16,201.15,13.59559401]
[1756592636194,7.59829241,201.16,201.15,13.59559401]
[1756592636895,0.06,201.16,201.15,13.59559401]
[1756592640404,0.06,201.16,201.15,14.27559401]
[1756592641275,0.06,201.16,201.15,19.24700837]
[1756592641785,0.06,201.16,201.15,21.81413355]
[1756592642005,0.06,201.16,201.15,27.51410355]
[1756592643105,0.06,201.16,201.15,66.17410355]
[1756592643888,0.06,201.16,201.15,70.56401687]
[1756592645386,0.06,201.16,201.15,72.00389338]
[1756592647715,0.06,201.19,201.18,39.59559401]
[1756592647914,0.06,201.19,201.18,82.739663]
[1756592648086,0.06,201.19,201.18,83.439663]
[1756592648420,0.06,201.19,201.18,85.431744]
[1756592648582,0.06,201.19,201.18,90.40241702]
[1756592650602,0.06,201.21,201.19,13.59559401]
[1756592650913,0.06,201.21,201.2,22.10661528]
[1756592651093,0.06,201.21,201.2,22.80661528]
[1756592651288,0.06,201.21,201.2,24.79829928]
[1756592651505,1e-08,201.21,201.2,24.79829928]
[1756592652425,0.06,201.24,201.23,39.59559401]
[1756592652633,0.06,201.24,201.23,87.21203365]
[1756592652809,0.06,201.24,201.23,88.40897744]
[1756592653010,0.06,201.24,201.23,90.40046344]
[1756592655502,0.06,201.24,201.23,51.76046344]
[1756592655703,0.06,201.24,201.23,90.40046344]
[1756592656225,0.06,201.26,201.24,13.59559401]
[1756592656419,0.06,201.26,201.25,78.21559401]
[1756592656598,0.06,201.26,201.25,82.2225957]
[1756592656798,0.06,201.26,201.25,59.4107781]
[1756592657799,0.06,201.29,201.28,39.59559401]
[1756592658014,0.06,201.29,201.28,82.2225957]
[1756592658202,0.06,201.29,201.28,82.9225957]
[1756592658627,0.06,201.29,201.28,87.84900363]
[1756592658929,0.06,201.29,201.28,89.83999363]
[1756592659430,0.06,201.29,201.28,95.30501746]
[1756592659632,0.06,201.29,201.28,94.80819712]
[1756592662422,0.06,201.29,201.28,55.48819712]
[1756592662610,0.75,201.29,201.28,94.10819712]
[1756592663006,0.06,201.29,201.28,94.08819712]
[1756592668231,0.06,201.29,201.28,94.78819712]
[1756592672351,0.06,201.29,201.28,94.08819712]
[1756592673346,0.06,201.29,201.28,51.48119543]
[1756592673523,0.73,201.29,201.28,92.64286899]
[1756592675130,0.73,201.29,201.28,87.71646106]
[1756592675325,0.73,201.29,201.28,89.15835388]
[1756592677046,0.73,201.29,201.28,94.23549408]
[1756592681530,0.73,201.29,201.28,58.17015039]
[1756592683924,0.73,201.29,201.28,63.13835388]
[1756592684828,0.06,201.29,201.28,63.13835388]
[1756592685548,0.73,201.29,201.28,63.13835388]
[1756592686448,0.06,201.29,201.28,63.13835388]
[1756592695352,0.06,201.29,201.28,61.69721026]
[1756592700759,0.06,201.29,201.28,56.70900677]
[1756592700970,0.06,201.29,201.28,18.14900677]
[1756592701355,0.73,201.29,201.28,56.70900677]
[1756592701861,0.06,201.29,201.28,61.67721026]
[1756592703265,0.06,201.29,201.28,88.39721026]
[1756592703441,0.06,201.29,201.28,99.14372164]
[1756592703642,0.06,201.29,201.28,88.39721026]
[1756592704072,0.06,201.29,201.28,92.1040968]
[1756592704447,0.06,201.29,201.28,66.1040968]
[1756592705853,0.06,201.29,201.28,76.35378784]
[1756592706165,0.06,201.32,201.31,39.59559401]
[1756592706466,0.06,201.32,201.31,84.40490331]
[1756592706846,0.73,201.32,201.31,86.39579531]
[1756592708066,0.73,201.32,201.31,54.12648601]
[1756592708957,0.73,201.32,201.31,56.68890877]
[1756592711351,0.73,201.32,201.31,15.58648601]
[1756592711573,0.73,201.32,201.31,54.12648601]
[1756592713182,0.73,201.32,201.31,56.68890877]
[1756592713560,0.73,201.32,201.31,54.12648601]
[1756592713763,0.73,201.32,201.31,56.68890877]
[1756592715280,0.06,201.32,201.31,61.65637188]
[1756592716685,0.73,201.32,201.31,61.65637188]
[1756592716879,0.73,201.32,201.31,56.68890877]
[1756592722891,0.73,201.32,201.31,54.12648601]
[1756592726079,0.73,201.32,201.31,59.09394912]
[1756592727495,0.06,201.32,201.31,59.09394912]
[1756592728497,0.73,201.32,201.31,54.12648601]
[1756592732078,0.06,201.32,201.31,54.12648601]
[1756592733100,0.77,201.32,201.31,54.12648601]
[1756592733300,0.06,201.32,201.31,54.12648601]
[1756592734710,3.33242276,201.32,201.31,54.10648601]
[1756592740823,0.06,201.32,201.31,62.30637188]
[1756592742021,0.06,201.32,201.31,59.74394912]
[1756592742902,3.33242276,201.32,201.31,54.08648601]
[1756592743584,0.77,201.32,201.31,54.08648601]
[1756592745599,0.06,201.32,201.31,54.08648601]
[1756592746500,0.06,201.32,201.31,59.72394912]
[1756592746689,0.06,201.32,201.31,62.28637188]
[1756592747892,0.06,201.32,201.31,59.72394912]
[1756592748115,0.06,201.32,201.31,62.28637188]
[1756592751317,0.06,201.32,201.31,63.72488671]
[1756592755124,0.06,201.32,201.31,25.22488671]
[1756592755307,0.06,201.32,201.31,63.70488671]
[1756592763604,0.06,201.34,201.33,39.59559401]
[1756592763805,0.06,201.34,201.33,82.0765316]
[1756592764024,0.06,201.34,201.33,82.7865316]
[1756592764918,0.06,201.34,201.33,84.7770266]
[1756592765316,0.06,201.34,201.33,89.74399625]
[1756592770038,0.06,201.34,201.33,46.55305866]
[1756592770336,0.06,201.34,201.33,15.58608901]
[1756592770337,0.76,201.34,201.33,15.58608901]
[1756592770633,0.76,201.34,201.33,54.04608901]
[1756592771049,0.76,201.34,201.33,15.58608901]
[1756592771213,0.76,201.34,201.33,54.04608901]
[1756592773535,0.76,201.34,201.33,52.05559401]
[1756592782955,0.06,201.34,201.33,60.29454209]
[1756592783147,0.06,201.34,201.33,62.91652109]
[1756592783348,0.06,201.34,201.33,62.20652109]
[1756592783654,0.76,201.34,201.33,16.21757301]
[1756592783859,0.76,201.34,201.33,52.05559401]
[1756592784160,0.76,201.34,201.33,54.04648601]
[1756592785550,0.76,201.34,201.33,59.01345566]
[1756592785749,0.06,201.34,201.33,59.01345566]
[1756592786154,0.06,201.34,201.33,61.57543409]
[1756592787470,0.06,201.34,201.33,59.01345566]
[1756592787659,0.06,201.34,201.33,61.57543409]
[1756592788180,0.06,201.34,201.33,59.01345566]
[1756592788358,0.06,201.34,201.33,61.57543409]
[1756592811204,0.06,201.34,201.33,62.27543409]
[1756592823831,1e-08,201.34,201.33,62.27543409]
[1756592824325,0.06,201.35,201.34,39.59559401]
[1756592824522,0.06,201.35,201.34,42.81757244]
[1756592825027,0.06,201.35,201.34,48.51135318]
[1756592825417,0.06,201.35,201.34,53.47807613]
[1756592826906,0.06,201.35,201.34,52.81807613]
[1756592828027,0.06,201.35,201.34,52.81908586]
[1756592828728,0.06,201.35,201.34,52.81879367]
[1756592829317,0.06,201.35,201.34,53.47879367]
[1756592830524,0.06,201.36,201.35,39.59559401]
[1756592830838,0.06,201.36,201.35,84.90177272]
[1756592831336,0.06,201.36,201.35,86.89197172]
[1756592832525,1e-08,201.36,201.35,91.198448]
[1756592832725,1e-08,201.36,201.35,91.858448]
[1756592837043,0.06,201.39,201.38,39.59559401]
[1756592837338,0.72,201.39,201.38,84.24177272]
[1756592837748,0.72,201.39,201.38,86.80375072]
[1756592838728,0.72,201.39,201.38,86.79932841]
[1756592839124,0.72,201.39,201.38,88.06528685]
[1756592839329,0.72,201.39,201.38,91.76508374]
[1756592841127,0.72,201.39,201.38,89.20310531]
[1756592841352,0.72,201.39,201.38,91.76508374]
[1756592848841,0.72,201.39,201.38,51.23559401]
[1756592858562,0.06,201.39,201.38,51.23559401]
[1756592858963,0.06,201.39,201.38,64.61726485]
[1756592868979,0.06,201.39,201.38,64.64726485]
[1756592871788,0.06,201.39,201.38,26.28726485]
[1756592871956,0.75,201.39,201.38,61.39528642]
[1756592872156,0.75,201.39,201.38,63.95726485]
[1756592872774,0.06,201.39,201.38,63.95726485]
[1756592872976,0.06,201.39,201.38,64.62726485]
[1756592877586,0.06,201.39,201.38,68.33043283]
[1756592880501,0.06,201.39,201.38,67.66043283]
[1756592881062,0.06,201.39,201.38,63.95726485]
[1756592881282,0.06,201.39,201.38,67.6604138]
[1756592881581,0.06,201.39,201.38,68.3204138]
[1756592889196,0.06,201.39,201.38,65.75843537]
[1756592889506,0.06,201.39,201.38,68.3204138]
[1756592891011,0.06,201.39,201.38,64.61726485]
[1756592891312,0.06,201.39,201.38,68.3209701]
[1756592893804,0.06,201.39,201.38,26.75899167]
[1756592894004,0.06,201.39,201.38,67.6409701]
[1756592895799,0.06,201.39,201.38,68.3009701]
[1756592899515,0.06,201.39,201.38,67.6409701]
[1756592902003,0.06,201.39,201.38,67.6469882]
[1756592902323,0.06,201.39,201.38,65.08500977]
[1756592902518,0.06,201.39,201.38,67.6469882]
[1756592903425,0.06,201.39,201.38,68.3069882]
[1756592905127,0.06,201.39,201.38,65.74500977]
[1756592905329,0.06,201.39,201.38,68.3069882]
[1756592912631,0.06,201.39,201.38,68.30990852]
[1756592915230,0.06,201.41,201.4,52.40548616]
[1756592915413,0.00564907,201.41,201.4,97.76000916]
[1756592915614,0.06,201.42,201.41,13.59559401]
[1756592915813,0.06,201.42,201.41,23.23209544]
[1756592916009,0.06,201.42,201.41,23.95209544]
[1756592916427,0.06,201.42,201.41,26.51407444]
[1756592916831,0.06,201.42,201.41,31.47907121]
[1756592917042,0.06,201.42,201.41,28.19709278]
[1756592917245,0.78,201.42,201.41,69.03907121]
[1756592917539,0.06,201.42,201.41,69.03907121]
[1756592918828,0.06,201.42,201.41,66.04642754]
[1756592919437,0.06,201.42,201.41,65.32642754]
[1756592923212,0.06,201.42,201.41,61.96454821]
[1756592923518,0.06,201.42,201.41,65.20321924]
[1756592923848,0.06,201.42,201.41,65.20309782]
[1756592927138,0.06,201.42,201.41,65.92309782]
[1756592931339,0.06,201.42,201.41,24.36111939]
[1756592931544,0.78,201.42,201.41,60.21810105]
[1756592931721,0.78,201.42,201.41,65.18309782]
[1756592932041,0.06,201.42,201.41,65.18309782]
[1756592933243,0.06,201.42,201.41,65.90309782]
[1756592933450,0.06,201.42,201.41,66.79309782]
[1756592934032,0.06,201.42,201.41,66.75885047]
[1756592934334,0.06,201.42,201.41,66.03885047]
[1756592935725,0.06,201.42,201.41,63.47687204]
[1756592935928,0.78,201.42,201.41,66.03885047]
[1756592937130,0.06,201.42,201.41,66.03885047]
[1756592937343,0.78,201.42,201.41,61.0738537]
[1756592938351,0.78,201.42,201.41,58.51187527]
[1756592938650,0.78,201.42,201.41,55.30757301]
[1756592939027,0.78,201.42,201.41,55.33757301]
[1756592939226,0.78,201.42,201.41,57.89955144]
[1756592939439,0.06,201.42,201.41,57.89955144]
[1756592940438,0.78,201.42,201.41,55.33757301]
[1756592940652,0.78,201.42,201.41,57.89955144]
[1756592941340,0.78,201.42,201.41,55.33757301]
[1756592941537,0.78,201.42,201.41,57.89955144]
[1756592941731,0.06,201.42,201.41,62.86454821]
[1756592942436,0.73,201.42,201.41,62.86454821]
[1756592942846,0.06,201.42,201.41,62.86454821]
[1756592944969,0.06,201.42,201.41,60.30256978]
[1756592945140,0.06,201.42,201.41,62.86454821]
[1756592950552,0.06,201.44,201.41,62.86454821]
[1756592950758,0.06,201.44,201.41,63.56454821]
[1756592951161,0.06,201.44,201.41,61.00256921]
[1756592951334,0.06,201.44,201.43,13.59559401]
[1756592951655,0.06,201.44,201.43,51.85559401]
[1756592952044,0.06,201.44,201.43,13.59559401]
[1756592952258,0.06,201.44,201.43,51.85559401]
[1756592953265,0.06,201.44,201.43,13.59559401]
[1756592953440,0.06,201.44,201.43,51.83559401]
[1756592954252,0.06,201.44,201.43,54.45757201]
[1756592957863,0.73,201.44,201.43,54.45757201]
[1756592958362,0.73,201.44,201.43,16.21757201]
[1756592958653,0.73,201.44,201.41,0.92]
[1756592958654,8.25623577,201.44,201.41,0.92]
[1756592958955,2.56197843,201.42,201.41,0.92]
[1756592959337,8.1967287,201.42,201.41,0.79]
[1756592959939,23.1284167,201.42,201.41,0.79]
[1756592960347,8.1967287,201.42,201.41,0.79]
[1756592961264,21.7923227,201.42,201.41,0.79]
[1756592973068,21.1223227,201.42,201.41,0.79]
[1756592974373,18.56034427,201.42,201.41,0.79]
[1756592974551,21.1223227,201.42,201.41,0.79]
[1756592977077,7.5267287,201.42,201.41,0.79]
[1756592977956,9.5176197,201.42,201.41,0.79]
[1756592988282,9.5176197,201.42,201.38,0.03]
[1756592988283,70.9874091,201.42,201.38,0.03]
[1756592988467,2.56197843,201.39,201.38,0.03]
[1756592988671,66.80197843,201.39,201.38,1e-08]
[1756592988865,69.36346443,201.39,201.38,1e-08]
[1756592989964,74.32895427,201.39,201.38,1e-08]
[1756592990471,73.75895427,201.39,201.38,1e-08]
[1756592996662,35.51895427,201.39,201.38,0.67000001]
[1756592996870,33.52746827,201.39,201.38,0.67000001]
[1756592997173,28.56197843,201.39,201.38,14.26559402]
[1756593001598,33.52746827,201.39,201.38,14.26559402]
[1756593002378,33.52746827,201.39,201.38,1e-08]
[1756593002788,33.52746827,201.39,201.38,0.69000001]
[1756593003095,28.56197843,201.39,201.38,0.69000001]
[1756593004187,33.52746827,201.39,201.38,0.69000001]
[1756593004582,33.52746827,201.39,201.38,1e-08]
[1756593006383,33.52746827,201.39,201.38,0.69000001]
[1756593008693,28.56197843,201.39,201.38,0.69000001]
[1756593011901,38.28,201.42,201.39,13.59559401]
[1756593011902,0.06,201.42,201.39,13.59559401]
[1756593012105,2.56197843,201.4,201.38,1e-08]
[1756593012277,2.56197843,201.39,201.38,13.59559402]
[1756593012597,2.56197843,201.39,201.38,14.28559402]
[1756593014200,26.06,201.42,201.38,14.28559402]
[1756593014403,2.56197843,201.4,201.39,14.28559401]
[1756593015696,28.56197843,201.4,201.39,14.28559401]
[1756593017308,2.56197843,201.4,201.39,14.28559401]
[1756593018598,26.0,201.41,201.4,13.59559401]
[1756593018805,28.56197843,201.41,201.4,13.59559401]
[1756593019111,28.56197843,201.41,201.39,0.69]
[1756593019292,2.56197843,201.4,201.39,0.69]
[1756593020812,26.0,201.41,201.39,0.69]
[1756593020985,2.56197843,201.4,201.39,0.69]
[1756593021988,28.56197843,201.4,201.39,0.69]
[1756593022717,30.96503515,201.41,201.39,0.69]
[1756593022919,28.56197843,201.4,201.39,0.69]
[1756593023611,2.56197843,201.4,201.39,0.69]
[1756593024023,2.62197843,201.4,201.39,0.69]
[1756593024232,28.62197843,201.4,201.39,0.69]
[1756593024398,28.62197843,201.4,201.39,14.28559401]
[1756593024826,2.62197843,201.4,201.39,14.28559401]
[1756593025004,0.06,201.4,201.39,14.28559401]
[1756593027321,0.06,201.4,201.39,16.84757244]
[1756593028024,0.06,201.4,201.39,18.83816644]
[1756593028225,0.06,201.4,201.39,16.27618801]
[1756593029924,0.06,201.4,201.39,23.80365628]
[1756593032913,0.06,201.4,201.39,16.27618801]
[1756593033121,0.06,201.4,201.39,14.28559401]
[1756593034433,3.19197843,201.4,201.39,13.59559401]
[1756593034623,3.19197843,201.4,201.38,1.99059501]
[1756593034824,2.56197843,201.39,201.38,15.58618902]
[1756593035129,2.56197843,201.39,201.38,13.59559402]
[1756593039644,7.58739846,201.4,201.38,13.59559402]
[1756593040237,0.06,201.4,201.39,14.25559401]
[1756593044429,0.06,201.4,201.39,0.66]
[1756593044636,0.06,201.4,201.39,14.25559401]
[1756593046650,0.06,201.4,201.39,21.78306228]
[1756593046826,0.06,201.4,201.39,23.77355728]
[1756593049339,0.06,201.4,201.39,21.21157885]
[1756593049545,0.06,201.4,201.39,25.21090502]
[1756593067469,0.06,201.42,201.4,13.59559401]
[1756593067651,0.06,201.42,201.41,55.75492018]
[1756593067852,0.06,201.42,201.41,56.45492018]
[1756593068163,0.06,201.42,201.41,58.44462318]
[1756593069361,0.06,201.42,201.41,57.00354459]
[1756593069680,0.06,201.42,201.41,61.96854136]
[1756593072092,0.63,201.42,201.41,53.74529701]
[1756593072457,0.63,201.42,201.41,51.75559401]
[1756593073374,0.63,201.42,201.41,13.59559401]
[1756593073573,0.63,201.42,201.41,51.75559401]
[1756593073961,0.63,201.42,201.41,13.59559401]
[1756593074169,0.63,201.42,201.41,51.75559401]
[1756593075783,0.06,201.42,201.41,51.75559401]
[1756593079490,0.06,201.42,201.41,13.59559401]
[1756593080190,0.63,201.42,201.41,13.59559401]
[1756593080690,4.62991501,201.42,201.41,13.59559401]
[1756593081190,26.0,201.41,201.38,13.59559402]
[1756593081365,3.99991501,201.39,201.38,13.59559402]
[1756593081573,9.53540485,201.39,201.38,1e-08]
[1756593090122,4.96548984,201.39,201.38,1e-08]
[1756593090279,3.99991501,201.39,201.38,14.29559402]
[1756593090476,3.99991501,201.39,201.38,13.59559402]
[1756593092094,9.53540485,201.39,201.38,13.59559402]
[1756593092291,8.96540485,201.39,201.38,13.59559402]
[1756593095319,9.53540485,201.39,201.38,1e-08]
[1756593095505,23.13099885,201.39,201.38,1e-08]
[1756593095706,26.0,201.37,201.36,0.03]
[1756593096011,29.99991501,201.37,201.36,0.03]
[1756593096196,30.56991501,201.37,201.36,0.03]
[1756593096396,4.56991501,201.37,201.36,0.03]
[1756593096598,30.56991501,201.37,201.36,0.03]
[1756593097127,32.56140101,201.37,201.36,0.03]
[1756593097634,37.52738402,201.37,201.36,0.03]
[1756593098933,53.93039231,201.37,201.33,0.03]
[1756593099103,26.0,201.33,201.3,0.03]
[1756593099304,33.99983002,201.33,201.3,0.03]
[1756593099530,41.52878167,201.33,201.3,0.03]
[1756593101723,37.52886666,201.33,201.3,0.03]
[1756593102204,75.70886666,201.33,201.3,0.03]
[1756593102406,79.70878167,201.33,201.3,0.03]
[1756593103126,79.70878167,201.33,201.27,0.03]
[1756593103327,12.9675399,201.3,201.27,0.03]
[1756593103520,26.0,201.28,201.27,0.03]
[1756593103835,3.99991501,201.3,201.27,0.03]
[1756593104007,3.99991501,201.3,201.28,13.59559401]
[1756593104406,29.99991501,201.3,201.29,14.31559401]
[1756593104918,3.99991501,201.3,201.29,14.31559401]
[1756593106018,3.99991501,201.31,201.3,13.59559401]
[1756593106222,3.99991501,201.31,201.3,14.31559401]
[1756593108319,3.99991501,201.32,201.3,14.34559401]
[1756593108518,3.99991501,201.32,201.31,14.31559401]
[1756593117828,29.99991501,201.33,201.32,13.59559401]
[1756593118027,29.99991501,201.33,201.32,14.31559401]
[1756593119123,29.99991501,201.33,201.3,13.62559401]
[1756593119342,3.99991501,201.31,201.3,14.34559401]
[1756593119544,3.99991501,201.31,201.3,0.03]
[1756593120234,3.99991501,201.31,201.3,14.34559401]
[1756593120624,29.99991501,201.32,201.31,13.59559401]
[1756593120830,3.99991501,201.33,201.31,14.31559401]
[1756593121029,3.99991501,201.33,201.32,0.72]
[1756593121959,29.99991501,201.34,201.32,0.72]
[1756593122128,26.0,201.33,201.32,0.72]
[1756593125353,26.0,201.33,201.32,14.31559401]
[1756593125529,29.99991501,201.33,201.3,0.71]
[1756593125854,3.99991501,201.31,201.3,0.03]
[1756593126255,34.96737812,201.31,201.3,0.03]
[1756593130260,9.53737812,201.31,201.3,0.03]
[1756593130464,13.53729313,201.31,201.3,0.03]
[1756593130641,13.53729313,201.31,201.3,1e-08]
[1756593131334,41.52967213,201.31,201.3,1e-08]
[1756593131646,15.52967213,201.31,201.3,1e-08]
[1756593132156,41.52967213,201.31,201.29,1e-08]
[1756593132350,33.99983002,201.3,201.27,0.03]